fUSD/lending_fUSD_20241001
["ID","MTS","AMOUNT","RATE_DAILY","PERIOD"]
[339658762,1727817038378,-1000.0,0.0002982,10]
[339658763,1727817038389,-1000.0,0.0002984,10]
[339658764,1727817038403,-150.100206,0.00029848,14]
[339658765,1727817038415,-1000.0,0.0002986,10]
[339658766,1727817038426,-1000.0,0.0002988,10]
[339658767,1727817038438,-16496.0462182,0.0002989,4]
[339658768,1727817038450,-3000.0,0.000299,2]
[339658769,1727817038462,-236.08913881,0.000299,2]
[339658770,1727817038474,-1000.0,0.000299,10]
[339658771,1727817038486,-299.3074616,0.000299,2]
[339658772,1727817038498,-1000.0,0.0002992,10]
[339658773,1727817038511,-35494.6383368,0.0002993,5]
[339658774,1727817038522,-23266.6230967,0.0002993,4]
[339658785,1727817039507,-9725.4693397,0.0002993,4]
[339658786,1727817039519,-1000.0,0.0002994,10]
[339658787,1727817039532,-150.0,0.00029953,2]
[339658788,1727817039544,-1431.33513602,0.00029959,2]
[339658789,1727817039555,-43879.5439795,0.00029959,2]
[339658790,1727817039569,-7453.55953814,0.00029959,2]
[339658791,1727817039583,-1724.15265944,0.00029959,2]
[339658792,1727817039619,-470.79692717,0.00029959,2]
[339658793,1727817039631,-868.52875495,0.0002996,5]
[339658794,1727817039645,-910.67391534,0.0002996,5]
[339658795,1727817039666,-636.79253411,0.0002996,5]
[339658796,1727817039679,-18288.6,0.0002996,5]
[339658797,1727817039694,-1783.20741457,0.0002996,5]
[339658798,1727817039709,-474.46635641,0.0002996,5]
[339658799,1727817039730,-303.08,0.00014045,2]
[339658800,1727817039743,-18986.91999953,0.0002996,5]
[339658801,1727817039757,-1594.44501813,0.0002996,5]
[339658802,1727817039772,-501.23538144,0.0002996,5]
[339658803,1727817039786,-2903.71306986,0.0002996,5]
[339658804,1727817039800,-3421.55845167,0.0002996,5]
[339658805,1727817039814,-2228.53585342,0.0002996,5]
[339658806,1727817039828,-72374.20215191,0.0002996,5]
[339658807,1727817039867,-123489.58945666,0.0002996,5]
[339658808,1727817039879,-230944.647055,0.0002996,4]
[339658809,1727817039891,-1000.0,0.0002996,10]
[339658810,1727817039905,-70989.2766737,0.00029969,5]
[339658811,1727817039917,-45051.51404667,0.00029969,4]
[339658813,1727817039931,-2862.03116841,0.00029969,4]
[339658937,1727817041934,-271.423,0.0002154,2]
[339658939,1727817041943,-337.867,0.00027362,2]
[339658940,1727817041970,-1035.7815816,0.00027362,2]
[339658943,1727817041981,-1959.02575318,0.00027362,2]
[339658945,1727817041992,-2216.38758432,0.00027362,2]
[339658947,1727817042002,-200.0,0.00028362,30]
[339658949,1727817042011,-200.0,0.00028362,30]
[339658951,1727817042020,-200.0,0.00028362,30]
[339658952,1727817042029,-200.0,0.00028362,30]
[339658954,1727817042039,-200.0,0.00028362,30]
[339658956,1727817042048,-200.0,0.00028362,30]
[339658958,1727817042057,-200.0,0.00028362,30]
[339658960,1727817042066,-4352.78435037,0.00029969,4]
[339658962,1727817042077,-4235.85334958,0.00029969,4]
[339658964,1727817042088,-9482.00195767,0.00029969,4]
[339658966,1727817042098,-70989.2766737,0.00029978,5]
[339658968,1727817042107,-82480.2310909,0.00029978,4]
[339658970,1727817042116,-555.85359513,0.00029979,2]
[339658972,1727817042126,-70989.2766737,0.0002998,5]
[339658974,1727817042135,-131968.369745,0.0002998,4]
[339658976,1727817042144,-1000.0,0.0002998,10]
[339658978,1727817042155,-37255.17274607,0.00029998,7]
[339658980,1727817042164,-1000.0,0.00029999,90]
[339658982,1727817042174,-213.33630603,0.00029999,2]
[339658984,1727817042184,-282.02587164,0.00029999,2]
[339658986,1727817042193,-500.0,0.00029999,2]
[339658988,1727817042202,-500.0,0.00029999,2]
[339658989,1727817042211,-500.0,0.00029999,2]
[339658991,1727817042222,-303.79409764,0.00029999,2]
[339658993,1727817042232,-442.38542635,0.00029999,2]
[339658995,1727817042241,-2000.0,0.00029999,120]
[339658997,1727817042250,-500.0,0.00029999,120]
[339658999,1727817042259,-229333.57920585,0.0003,15]
[339659001,1727817042271,-312.22017178,0.0003,15]
[339659003,1727817042282,-62186.5445998,0.0003,15]
[339659005,1727817042293,-6214.73959699,0.0003,15]
[339659007,1727817042305,-8208.53520196,0.0003,15]
[339659009,1727817042315,-1019.83248483,0.0003,15]
[339659011,1727817042327,-18943.76812934,0.0003,15]
[339659013,1727817042338,-1080.68345125,0.0003,15]
[339659016,1727817042353,-618.74932003,0.0003,15]
[339659018,1727817042364,-393.01182328,0.0003,15]
[339659021,1727817042379,-509.16789362,0.0003,15]
[339659023,1727817042389,-4035.74524885,0.0003,15]
[339659067,1727817042818,-200.0,0.00028362,30]
[339659069,1727817042827,-200.0,0.00028362,30]
[339659071,1727817042836,-924.73356299,0.0003,15]
[339659074,1727817042847,-660.549,0.0003,15]
[339659076,1727817042858,-476.45777715,0.0003,15]
[339659079,1727817042880,-5142.19115269,0.0003,15]
[339659081,1727817042890,-1663.5002,0.0003,15]
[339659083,1727817042901,-572.19529931,0.0003,15]
[339659085,1727817042914,-2303.5,0.0003,15]
[339659096,1727817042998,-13471.89695095,0.0003,15]
[339659099,1727817043010,-475127.56990678,0.0003,15]
[339659102,1727817043021,-3429.68937403,0.0003,15]
[339659114,1727817043096,-889.49999995,0.0003,15]
[339659116,1727817043106,-998.56,0.0003,15]
[339659118,1727817043118,-400.075,0.0003,15]
[339659121,1727817043131,-351.91594489,0.0003,15]
[339659123,1727817043142,-621.51461131,0.0003,15]
[339659127,1727817043177,-33598.95918226,0.0003,15]
[339659129,1727817043187,-38721.42066455,0.0003,15]
[339659131,1727817043198,-1986.34492326,0.0003,15]
[339659133,1727817043209,-844.59940541,0.0003,15]
[339659135,1727817043220,-6823.92594344,0.0003,15]
[339659137,1727817043231,-325.579,0.0003,15]
[339659139,1727817043242,-6896.22910835,0.0003,15]
[339659141,1727817043253,-83348.20398924,0.0003,15]
[339659143,1727817043263,-304.33735203,0.0003,15]
[339659145,1727817043274,-20776.22156443,0.0003,15]
[339659148,1727817043285,-478.75263346,0.0003,15]
[339659150,1727817043296,-602.7973578,0.0003,15]
[339659152,1727817043307,-2266.00000008,0.0003,15]
[339659158,1727817043357,-701.66503495,0.0003,15]
[339659160,1727817043369,-1787.55805162,0.0003,15]
[339659242,1727817044195,-217.0,0.0002692,2]
[339659245,1727817044206,-200.0,0.00028362,30]
[339659246,1727817044216,-200.0,0.00028362,30]
[339659249,1727817044226,-200.0,0.00028362,30]
[339659250,1727817044236,-200.0,0.00028362,30]
[339659252,1727817044246,-200.0,0.00028362,30]
[339659254,1727817044256,-5397.608,0.0003,15]
[339659278,1727817044267,-24360.0,0.0003,15]
[339659283,1727817044529,-12193.981188,0.0003,15]
[339659285,1727817044542,-1112.32159237,0.0003,15]
[339659287,1727817044553,-369.04840763,0.0003,15]
[339659295,1727817044635,-1202.82442801,0.0003,15]
[339659298,1727817044646,-170156.9893892,0.0003,15]
[339659299,1727817044658,-178.96510162,0.0003,120]
[339659301,1727817044667,-1800.0,0.0003,31]
[339659303,1727817044676,-1957.49383034,0.0003,120]
[339659305,1727817044685,-529.61112639,0.0003,120]
[339659307,1727817044694,-154.35635501,0.0003,120]
[339659308,1727817044703,-2016.69565444,0.0003,120]
[339659310,1727817044712,-838.578,0.0003,60]
[339659312,1727817044721,-8076.07601722,0.0003,120]
[339659314,1727817044730,-159.0063958,0.0003,30]
[339659316,1727817044739,-1747.54137081,0.0003,30]
[339659318,1727817044748,-220.13,0.0003,90]
[339659319,1727817044758,-200.0,0.0003,14]
[339659320,1727817044767,-1970733.30649248,0.0003,7]
[339659321,1727817044779,-570303.18679439,0.0003,7]
[339659322,1727817044790,-134400.63899097,0.0003,7]
[339659323,1727817044823,-200.0,0.00028362,30]
[339659324,1727817044833,-78.9195,0.0003,7]
[339659325,1727817044845,-60963.89364826,0.0003,7]
[339659326,1727817044856,-500.57827625,0.0003,7]
[339659327,1727817044867,-738.26771386,0.0003,7]
[339659443,1727817046205,-200.0,0.00028362,30]
[339659444,1727817046214,-200.0,0.00028362,30]
[339659445,1727817046223,-200.0,0.00028362,30]
[339659446,1727817046232,-15.59999998,0.00028362,30]
[339659447,1727817046376,-184.40000002,0.00028362,30]
[339659448,1727817046386,-1005.59999998,0.0003,7]
[339659449,1727817046398,-349063.71426694,0.0003,7]
[339659450,1727817046415,-2008.43148739,0.0003,7]
[339659451,1727817046557,-827.1112,0.0003,7]
[339660087,1727818232356,-3087.07481745,0.000109,2]
[339660088,1727818232365,-161.35,0.00010959,2]
[339660089,1727818232377,-157.84,0.00010959,2]
[339660090,1727818232386,-150.31,0.0001099,2]
[339660091,1727818232396,-150.31,0.0001099,2]
[339660092,1727818232405,-150.31,0.0001099,2]
[339660093,1727818232414,-150.31,0.0001099,2]
[339660094,1727818232423,-150.31,0.0001099,2]
[339660095,1727818232432,-150.31,0.0001099,2]
[339660096,1727818232442,-2268.0,0.00010999,2]
[339660097,1727818232451,-300.0,0.00010999,2]
[339660098,1727818232460,-150.0,0.00010999,2]
[339660099,1727818232469,-500.0,0.00010999,2]
[339660100,1727818232479,-262.65586834,0.00010999,2]
[339660101,1727818232488,-500.0,0.00010999,2]
[339660102,1727818232498,-189.87,0.00011,2]
[339660103,1727818232507,-250.0,0.00011,2]
[339660104,1727818232516,-93.94323174,0.00011,2]
[339660105,1727818232528,-591.8028466,0.00011,2]
[339660106,1727818232540,-63943.34945576,0.00011,2]
[339660107,1727818232551,-399.037474,0.00011,2]
[339660181,1727818238541,-324.43090288,0.000109,2]
[339660183,1727818238551,-18528.45617462,0.00011,2]
[339660185,1727818238562,-39119.63245,0.00011,2]
[339660228,1727818241099,-266.62732697,0.00011,2]
[339660229,1727818241175,-3224.27037394,0.00011,2]
[339660230,1727818241186,-23776.19389263,0.00011,2]
[339660231,1727818241197,-217850.6232569,0.00011,2]
[339660232,1727818241301,-613.547004,0.00011,2]
[339660262,1727818243380,-14011.32228574,0.00011,2]
[339660269,1727818246369,-1763.802839,0.00011,2]
[339660270,1727818246382,-332918.42095807,0.00011,2]
[339660271,1727818246391,-170309.44545021,0.00011,2]
[339660272,1727818246402,-1253.731328,0.00011,2]
[339660273,1727818246468,-214.44266103,0.00011,2]
[339660274,1727818767644,260.53,9.195e-05,2]
[339660275,1727819118572,500.0,0.00022,120]
[339660276,1727819293979,1500.0,0.00022,120]
[339660277,1727819318148,150.0,0.0001002,2]
[339660278,1727819383811,263.63,8.45e-05,2]
[339660282,1727819431803,-230.482276,0.00010347,2]
[339660283,1727819431812,-167.717724,0.00010388,2]
[339660284,1727819431823,-430.242276,0.00010388,2]
[339660285,1727819431833,-200.0,0.00010399,2]
[339660286,1727819431842,-155.35,0.00010409,2]
[339660287,1727819431851,-327.14,0.00010419,2]
[339660288,1727819431862,-361.45255312,0.00010451,2]
[339660289,1727819434351,-15011.14076,0.00010451,2]
[339660301,1727819437546,-8527.40668688,0.00010451,2]
[339660302,1727819437556,-956.07,0.00010583,2]
[339660303,1727819437565,-150.0,0.0001063,2]
[339660304,1727819437574,-250.0,0.00010635,2]
[339660305,1727819437583,-246.2,0.00010635,2]
[339660306,1727819437592,-275.16,0.00010639,2]
[339660307,1727819437602,-1000.36,0.00010639,2]
[339660308,1727819437611,-499.99,0.00010639,2]
[339660309,1727819437621,-152.42,0.00010658,2]
[339660310,1727819437631,-428.99,0.00010658,2]
[339660311,1727819437641,-263.63,0.00010714,2]
[339660312,1727819437650,-1000.0,0.00010732,2]
[339660313,1727819437659,-250.0,0.00010762,2]
[339660314,1727819437668,-832.602,0.0001078,2]
[339660315,1727819437678,-158.023,0.0001078,2]
[339660316,1727819437687,-578.82,0.00010884,2]
[339660317,1727819437697,-5602.3104,0.000109,2]
[339660318,1727819437707,-157.52590792,0.000109,2]
[339660319,1727819437716,-199.53830774,0.000109,2]
[339660320,1727819437725,-283.87704002,0.000109,2]
[339660321,1727819437734,-150.0,0.00010958,2]
[339660322,1727819437744,-163.56,0.00010959,2]
[339660323,1727819437753,-2000.0,0.00010959,2]
[339660324,1727819437763,-150.0,0.00010959,2]
[339660325,1727819437772,-180.94,0.00010959,2]
[339660326,1727819437782,-155.57,0.00010959,2]
[339660327,1727819437791,-250.0,0.00010959,2]
[339660328,1727819437800,-500.0,0.00010973,2]
[339660329,1727819437809,-722.52382964,0.0001099,2]
[339660330,1727819437819,-152.02,0.0001099,2]
[339660331,1727819437828,-158.31767819,0.0001099,2]
[339660332,1727819437837,-260.98139401,0.00010999,2]
[339660333,1727819437846,-500.0,0.00010999,2]
[339660334,1727819437856,-500.0,0.00010999,2]
[339660335,1727819437865,-576.9709078,0.00010999,2]
[339660336,1727819437875,-500.0,0.00010999,2]
[339660337,1727819437884,-772141.19213522,0.00011,2]
[339660339,1727819437896,-1806.10303032,0.00011,2]
[339660340,1727819437948,-554.47157892,0.00011,2]
[339660341,1727819437959,-785.23100942,0.00011,2]
[339660345,1727819439381,-5630.65158727,0.00011,2]
[339660346,1727819439393,-791.18864157,0.00011,2]
[339660347,1727819439512,-637.63115334,0.00011,2]
[339660348,1727819439523,-2135.732481,0.00011,2]
[339660349,1727819439635,-265.40096543,0.00011,2]
[339660350,1727819439646,-562.02500001,0.00011,2]
[339660374,1727819442659,-494.92584373,0.00011,2]
[339660375,1727819442671,-1223.0450828,0.00011,2]
[339660525,1727819445505,-610.53864,0.00011,2]
[339660526,1727819445516,-333.96654544,0.00011,2]
[339660527,1727819445548,-150766.12848196,0.00011,2]
[339660528,1727819445680,-3054.2,0.00011,2]
[339660530,1727819973688,269.13,9.554e-05,2]
[339660531,1727820148910,2000.0,0.00022,120]
[339660532,1727820155414,2000.0,0.00022,120]
[339660533,1727820160883,2000.0,0.00022,120]
[339660534,1727820166589,10000.0,0.00011,120]
[339660535,1727820166892,2000.0,0.00022,120]
[339660536,1727820171657,2000.0,0.00022,120]
[339660537,1727820177800,2000.0,0.00022,120]
[339660538,1727820183346,648.924906,0.00022,120]
[339660539,1727820312269,150.8509707,9.888e-05,2]
[339660540,1727820539353,271.24,8.487e-05,2]
[339660555,1727820631580,-272.21,0.00010429,2]
[339660556,1727820631590,-300.0,0.00010437,2]
[339660557,1727820631599,-4671.08172088,0.00010438,2]
[339660566,1727820631621,-19228.91827912,0.00010438,2]
[339660569,1727820631932,-250.0,0.00010499,2]
[339660571,1727820631945,-1000.0,0.00010563,2]
[339660573,1727820631955,-348.48,0.00010563,2]
[339660574,1727820631964,-224.29,0.0001059,2]
[339660576,1727820631973,-250.0,0.0001069,2]
[339660579,1727820631982,-271.24,0.00010751,2]
[339660581,1727820631991,-261.3305,0.000108,2]
[339660583,1727820632000,-826.5722,0.000108,2]
[339660585,1727820632010,-10164.9362,0.000108,2]
[339660586,1727820632019,-499.99,0.000108,2]
[339660587,1727820632028,-3182.00572309,0.00010899,2]
[339660589,1727820632037,-150.0,0.00010899,2]
[339660591,1727820632047,-5747.3603,0.000109,2]
[339660592,1727820632056,-827.9067,0.000109,2]
[339660593,1727820632066,-1000.0,0.000109,2]
[339660594,1727820632076,-213.8018,0.000109,2]
[339660595,1727820632085,-616.63789995,0.000109,2]
[339660596,1727820632122,-487.52726761,0.000109,2]
[339660597,1727820632133,-5925.17501481,0.000109,2]
[339660598,1727820632144,-629.61171763,0.000109,2]
[339660599,1727820632153,-486.36218363,0.000109,2]
[339660600,1727820632164,-20.25631637,0.000109,2]
[339660601,1727820632174,-258.35246772,0.000109,2]
[339660602,1727820632185,-67.75523228,0.000109,2]
[339660603,1727820632197,-473.90013396,0.000109,2]
[339660604,1727820632226,-670.87956604,0.000109,2]
[339660605,1727820632235,-1365.01659992,0.000109,2]
[339660606,1727820632246,-3504.07490294,0.000109,2]
[339660607,1727820632257,-4773.11977575,0.000109,2]
[339660608,1727820632271,-2966.48754,0.000109,2]
[339660609,1727820632309,-1963.7448324,0.000109,2]
[339660610,1727820632320,-2218.35862201,0.000109,2]
[339660611,1727820632332,-14613.83921338,0.000109,2]
[339660612,1727820632343,-592.36206145,0.000109,2]
[339660613,1727820632354,-1098.10124655,0.000109,2]
[339660614,1727820632365,-688.39999162,0.000109,2]
[339660615,1727820632376,-2194.55656055,0.000109,2]
[339660616,1727820632388,-5345.25735343,0.000109,2]
[339660617,1727820632397,-832.86807503,0.000109,2]
[339660618,1727820632409,-700.0,0.000109,2]
[339660619,1727820632421,-5204.11282497,0.000109,2]
[339660620,1727820632431,-1428.2992,0.000109,2]
[339660621,1727820632441,-13925.10737842,0.000109,2]
[339660622,1727820632455,-7650.57962158,0.000109,2]
[339660623,1727820632464,-38509.7304,0.000109,2]
[339660624,1727820632474,-1900.4822,0.000109,2]
[339660625,1727820632484,-7924.9599,0.000109,2]
[339660626,1727820632493,-4230.4916,0.000109,2]
[339660627,1727820632503,-1588.1925,0.000109,2]
[339660628,1727820632513,-158.48610629,0.000109,2]
[339660629,1727820632522,-340.3042,0.000109,2]
[339660630,1727820632532,-15232.1886,0.000109,2]
[339660631,1727820632542,-700.77021422,0.000109,2]
[339660632,1727820632551,-335.31203095,0.000109,2]
[339660633,1727820632561,-650.39986497,0.000109,2]
[339660634,1727820632571,-217.12067785,0.000109,2]
[339660635,1727820632581,-151.03,0.00010959,2]
[339660636,1727820632591,-150.0,0.00010959,2]
[339660637,1727820632600,-2000.0,0.00010959,2]
[339660638,1727820632612,-161.35,0.00010959,2]
[339660639,1727820632622,-166.42136767,0.00010989,2]
[339660640,1727820632632,-154.04,0.00010989,2]
[339660641,1727820632641,-20449.49155514,0.0001099,2]
[339660642,1727820632651,-115415.59069848,0.00010999,2]
[339660647,1727820637698,-500.0,0.00010873,2]
[339660648,1727820637712,-345.302431,0.00010999,2]
[339660649,1727820637724,-1221.2,0.00010999,2]
[339660650,1727820637735,-13142.68775836,0.00010999,2]
[339660653,1727820637766,-2953.88686576,0.00010999,2]
[339660654,1727820637803,-1257.43565756,0.00010999,2]
[339660655,1727820637834,-166570.90860235,0.00010999,2]
[339660656,1727820637905,-2901.32341379,0.00010999,2]
[339660657,1727820637916,-1264.43557993,0.00010999,2]
[339660658,1727820637984,-1259.43334316,0.00010999,2]
[339660659,1727820637995,-1454.72444938,0.00010999,2]
[339660660,1727820638006,-699.69900693,0.00010999,2]
[339660661,1727820638105,-1138.0,0.00010999,2]
[339660666,1727820639640,-2383.28089997,0.00010999,2]
[339660667,1727820639653,-397.95,0.00010999,2]
[339660668,1727820639667,-828.41603292,0.00010999,2]
[339660669,1727820639685,-428.53887868,0.00010999,2]
[339660670,1727820639702,-1529.483534,0.00010999,2]
[339660671,1727820639722,-91681.41340885,0.00010999,2]
[339660672,1727820639737,-998.486475,0.00010999,2]
[339660673,1727820639751,-2110.66568425,0.00010999,2]
[339660674,1727820639779,-34138.3937352,0.00010999,2]
[339660675,1727820639800,-61525.0852731,0.00010999,2]
[339660676,1727820639814,-27053.90907254,0.00010999,2]
[339660677,1727820639840,-4218.43884436,0.00010999,2]
[339660678,1727820639854,-794.79791123,0.00010999,2]
[339660679,1727820639868,-6664.80077973,0.00010999,2]
[339660680,1727820639882,-969.65529697,0.00010999,2]
[339660681,1727820639989,-1458.91842534,0.00010999,2]
[339660682,1727820640003,-21421.47378642,0.00010999,2]
[339660683,1727820640017,-391.951146,0.00010999,2]
[339660776,1727820643283,-1371.56063522,0.00010999,2]
[339660778,1727820643295,-1302.1840501,0.00010999,2]
[339660780,1727820643306,-6139.39577407,0.00010999,2]
[339660782,1727820643317,-359.73856219,0.00010999,2]
[339660784,1727820643328,-7300.0,0.00010999,2]
[339660786,1727820643339,-5420.415,0.00010999,2]
[339660790,1727820643363,-6130.62450001,0.00010999,2]
[339660791,1727820643374,-4924.92,0.00010999,2]
[339660796,1727820679813,-244279.12837299,0.00010999,2]
[339660797,1727820679824,-640.97126621,0.00010999,2]
[339660798,1727820679834,-500.0,0.00010999,2]
[339660799,1727820679844,-4530079.53219816,0.00011,2]
[339660800,1727820679854,-2825541.20691027,0.00011,2]
[339660801,1727820679864,-406.95,0.00011,2]
[339660802,1727820679874,-250.0,0.00011,2]
[339660803,1727820679884,-158.857656,0.00011,2]
[339660804,1727820679894,-1464.2099441,0.00011204,2]
[339660805,1727820679904,-22701.8281474,0.00011212,2]
[339660806,1727820679914,-8674.1294447,0.0001122,2]
[339660807,1727820679924,-422.30975046,0.00011411,2]
[339660808,1727820679934,-250.0,0.00011589,2]
[339660809,1727820679944,-155.35,0.00011687,2]
[339660810,1727820679955,-1000.0,0.00011883,2]
[339660811,1727820679965,-354.05355021,0.000119,2]
[339660812,1727820679975,-255.0,0.00011945,2]
[339660813,1727820679987,-9000.0,0.00012,2]
[339660814,1727820679997,-328.04569345,0.00012,2]
[339660815,1727820680007,-158.31,0.00012033,2]
[339660816,1727820680017,-180.0,0.00012055,2]
[339660817,1727820680027,-170.53,0.00012147,2]
[339660818,1727820680037,-335.31203094,0.00012186,2]
[339660819,1727820680047,-400.22,0.0001225,2]
[339660820,1727820680057,-169.6,0.00012445,2]
[339660821,1727820680067,-304.98,0.000128,2]
[339660822,1727820680077,-1002.92,0.000128,2]
[339660823,1727820680088,-158.31,0.00012884,2]
[339660824,1727820680098,-6801.62118548,0.00012899,2]
[339660825,1727820680107,-199.0,0.000129,2]
[339660826,1727820680117,-500.38304451,0.00013,2]
[339660827,1727820680127,-300.0,0.00013,2]
[339660828,1727820680136,-271.24,0.00013015,2]
[339660829,1727820680147,-169.6,0.00013129,2]
[339660830,1727820680158,-1000.0,0.00013204,2]
[339660831,1727820680168,-335.31203094,0.00013471,2]
[339660832,1727820680178,-3182.00572309,0.00013533,2]
[339660833,1727820680189,-14946.3,0.00013605,2]
[339660834,1727820680198,-14782.95,0.00013674,2]
[339660835,1727820680209,-150.0,0.00013699,2]
[339660836,1727820680219,-500.0,0.00013699,2]
[339660837,1727820680232,-200.0,0.00013699,2]
[339660838,1727820680242,-151.31597849,0.000137,2]
[339660839,1727820680253,-151.31597849,0.000137,2]
[339660840,1727820680263,-151.31597849,0.000137,2]
[339660841,1727820680274,-151.31597849,0.000137,2]
[339660842,1727820680284,-151.31597849,0.000137,2]
[339660843,1727820680295,-151.31597849,0.000137,2]
[339660844,1727820680617,-151.31597849,0.000137,2]
[339660845,1727820680628,-151.31597849,0.000137,2]
[339660846,1727820680637,-151.31597849,0.000137,2]
[339660847,1727820680647,-151.31597849,0.000137,2]
[339660848,1727820680658,-151.31597849,0.000137,2]
[339660849,1727820680667,-151.31597849,0.000137,2]
[339660850,1727820680677,-151.31597849,0.000137,2]
[339660851,1727820680687,-151.31597849,0.000137,2]
[339660852,1727820680698,-151.31597849,0.000137,2]
[339660853,1727820680707,-151.31597849,0.000137,2]
[339660854,1727820680717,-151.81,0.000137,2]
[339660855,1727820680732,-156.05587216,0.000137,2]
[339660856,1727820680741,-156.05587216,0.000137,2]
[339660857,1727820680751,-156.05587216,0.000137,2]
[339660858,1727820680761,-156.05587216,0.000137,2]
[339660859,1727820680771,-156.05587216,0.000137,2]
[339660860,1727820680780,-156.05587216,0.000137,2]
[339660861,1727820680790,-156.05587216,0.000137,2]
[339660862,1727820680799,-156.05587216,0.000137,2]
[339660863,1727820680809,-156.05587216,0.000137,2]
[339660864,1727820680818,-156.05587216,0.000137,2]
[339660865,1727820680828,-156.05587216,0.000137,2]
[339660866,1727820680838,-156.05587216,0.000137,2]
[339660867,1727820680847,-156.05587216,0.000137,2]
[339660868,1727820680857,-156.05587216,0.000137,2]
[339660869,1727820680866,-156.05587216,0.000137,2]
[339660870,1727820680876,-156.05587216,0.000137,2]
[339660871,1727820680885,-156.05587216,0.000137,2]
[339660872,1727820680895,-156.05587216,0.000137,2]
[339660873,1727820680904,-156.55,0.000137,2]
[339660874,1727820680914,-236.97908325,0.000137,2]
[339660875,1727820680923,-236.97908325,0.000137,2]
[339660876,1727820680933,-236.97908325,0.000137,2]
[339660877,1727820680942,-236.97908325,0.000137,2]
[339660878,1727820680952,-236.97908325,0.000137,2]
[339660879,1727820680961,-236.97908325,0.000137,2]
[339660880,1727820680970,-236.97908325,0.000137,2]
[339660881,1727820680981,-236.97908325,0.000137,2]
[339660882,1727820680990,-236.97908325,0.000137,2]
[339660883,1727820681000,-236.97908325,0.000137,2]
[339660884,1727820681009,-236.97908325,0.000137,2]
[339660885,1727820681018,-236.97908325,0.000137,2]
[339660886,1727820681028,-236.97908325,0.000137,2]
[339660887,1727820681037,-236.97908325,0.000137,2]
[339660888,1727820681047,-236.97908325,0.000137,2]
[339660889,1727820681056,-236.97908325,0.000137,2]
[339660890,1727820681066,-236.97908325,0.000137,2]
[339660891,1727820681075,-236.97908325,0.000137,2]
[339660892,1727820681085,-236.97908325,0.000137,2]
[339660893,1727820681094,-237.47,0.000137,2]
[339660894,1727820681103,-15016.7,0.00013711,2]
[339660895,1727820681113,-158.31,0.00013735,2]
[339660896,1727820681122,-15098.67,0.00013748,2]
[339660897,1727820681132,-400.22,0.00013781,2]
[339660898,1727820681141,-15292.17,0.00013786,2]
[339660899,1727820681150,-1002.92,0.0001379,2]
[339660900,1727820681159,-151.0,0.000138,2]
[339660901,1727820681169,-151.0,0.000138,2]
[339660902,1727820681178,-151.710356,0.000138,2]
[339660903,1727820681188,-151.0,0.000138,2]
[339660904,1727820681197,-151.0,0.000138,2]
[339660905,1727820681206,-151.0,0.000138,2]
[339660906,1727820681215,-151.0,0.000138,2]
[339660907,1727820681225,-151.0,0.000138,2]
[339660908,1727820681235,-231.127129,0.000138,2]
[339660909,1727820681244,-151.0,0.000138,2]
[339660910,1727820681253,-151.076433,0.000138,2]
[339660911,1727820681263,-151.0,0.000138,2]
[339660912,1727820681272,-151.0,0.000138,2]
[339660913,1727820681281,-151.0,0.000138,2]
[339660914,1727820681291,-151.0,0.000138,2]
[339660915,1727820681301,-151.0,0.000138,2]
[339660916,1727820681311,-151.0,0.000138,2]
[339660917,1727820681320,-151.0,0.000138,2]
[339660918,1727820681330,-151.0,0.000138,2]